fUSD/lending_fUSD_20250108
["ID","MTS","AMOUNT","RATE_DAILY","PERIOD"]
[348105164,1736315453963,-500.0,0.00011643,2]
[348105165,1736315453972,-545.46304132,0.00011643,2]
[348105166,1736315453983,-1446.58,0.00011643,2]
[348105167,1736315453993,-500.0,0.00011643,2]
[348105168,1736315454002,-500.0,0.00011643,2]
[348105169,1736315454012,-500.0,0.00011643,2]
[348105170,1736315454022,-500.0,0.00011643,2]
[348105171,1736315454034,-500.0,0.00011643,2]
[348105172,1736315454044,-500.0,0.00011643,2]
[348105173,1736315454053,-500.0,0.00011643,2]
[348105174,1736315454064,-500.0,0.00011643,2]
[348105175,1736315454075,-486.22,0.00011643,2]
[348105176,1736315454085,-500.0,0.00011643,2]
[348105177,1736315454094,-500.0,0.00011643,2]
[348105178,1736315454104,-500.0,0.00011643,2]
[348105179,1736315454115,-500.0,0.00011643,2]
[348105180,1736315454126,-500.0,0.00011643,2]
[348105181,1736315454137,-500.0,0.00011643,2]
[348105182,1736315454147,-504.88152971,0.00011643,2]
[348105183,1736315454157,-500.0,0.00011643,2]
[348105184,1736315454167,-500.0,0.00011643,2]
[348105185,1736315454179,-500.0,0.00011643,2]
[348105186,1736315454189,-500.0,0.00011643,2]
[348105187,1736315454199,-500.0,0.00011643,2]
[348105188,1736315454209,-505.67823326,0.00011643,2]
[348105189,1736315454220,-500.0,0.00011643,2]
[348105190,1736315454231,-500.0,0.00011643,2]
[348105191,1736315454240,-500.0,0.00011643,2]
[348105192,1736315454250,-500.0,0.00011643,2]
[348105193,1736315454261,-500.0,0.00011643,2]
[348105194,1736315454270,-500.0,0.00011643,2]
[348105195,1736315454281,-514.96,0.00011643,2]
[348105196,1736315454292,-500.0,0.00011643,2]
[348105197,1736315454302,-500.0,0.00011643,2]
[348105198,1736315454314,-246.39093709,0.00011643,2]
[348105199,1736315454324,-424.11582374,0.00011643,2]
[348105200,1736315454333,-500.0,0.00011643,2]
[348105201,1736315454343,-648.89,0.00011643,2]
[348105202,1736315454352,-637.23,0.00011643,2]
[348105203,1736315454361,-500.0,0.00011643,2]
[348105204,1736315454373,-500.0,0.00011643,2]
[348105205,1736315454385,-417.25,0.00011643,2]
[348105206,1736315454394,-500.0,0.00011643,2]
[348105207,1736315454405,-500.0,0.00011643,2]
[348105208,1736315454415,-500.0,0.00011643,2]
[348105209,1736315454425,-871.32,0.00011643,2]
[348105210,1736315454435,-846.37,0.00011643,2]
[348105211,1736315454445,-500.0,0.00011643,2]
[348105212,1736315454455,-500.0,0.00011643,2]
[348105213,1736315454464,-1626.01,0.00011643,2]
[348105214,1736315454474,-500.0,0.00011643,2]
[348105215,1736315454484,-1089.12,0.00011643,2]
[348105216,1736315454493,-578.12,0.00011643,2]
[348105217,1736315454503,-500.0,0.00011643,2]
[348105218,1736315454513,-500.0,0.00011643,2]
[348105219,1736315454523,-500.0,0.00011643,2]
[348105220,1736315454533,-902.64,0.00011643,2]
[348105221,1736315454542,-877.67,0.00011643,2]
[348105222,1736315454552,-559.8,0.00011643,2]
[348105223,1736315454562,-785.35,0.00011643,2]
[348105224,1736315454572,-500.0,0.00011643,2]
[348105225,1736315454582,-1921.85,0.00011643,2]
[348105226,1736315454592,-500.0,0.00011643,2]
[348105227,1736315454602,-500.0,0.00011643,2]
[348105228,1736315454612,-500.0,0.00011643,2]
[348105229,1736315454622,-500.0,0.00011643,2]
[348105230,1736315454632,-2395.49,0.00011643,2]
[348105231,1736315454642,-500.0,0.00011643,2]
[348105232,1736315454652,-1876.64,0.00011643,2]
[348105233,1736315454661,-263.07650648,0.00011643,2]
[348105234,1736315454671,-1148.81,0.00011643,2]
[348105235,1736315454681,-1286.43,0.00011643,2]
[348105236,1736315454691,-500.0,0.00011643,2]
[348105237,1736315454701,-500.0,0.00011643,2]
[348105238,1736315454711,-500.0,0.00011643,2]
[348105239,1736315454721,-1751.91,0.00011643,2]
[348105240,1736315454731,-811.2,0.00011643,2]
[348105241,1736315454741,-500.0,0.00011643,2]
[348105242,1736315454751,-500.0,0.00011643,2]
[348105243,1736315454762,-150.0,0.00011645,2]
[348105244,1736315454773,-150.0,0.0001166,2]
[348105245,1736315454783,-300.57,0.00011671,2]
[348105246,1736315454793,-150.0,0.00011675,2]
[348105247,1736315454803,-155.129,0.0001168,2]
[348105248,1736315454814,-1520.25537958,0.00011689,2]
[348105249,1736315454824,-1800.0,0.000117,4]
[348105250,1736315454834,-150.0,0.00011701,2]
[348105251,1736315454844,-150.0,0.00011705,2]
[348105252,1736315454854,-150.0,0.00011711,2]
[348105253,1736315454864,-150.0,0.00011735,2]
[348105254,1736315454874,-500.0,0.00011753,2]
[348105255,1736315454885,-150.0,0.00011763,2]
[348105256,1736315454895,-150.0,0.00011765,2]
[348105257,1736315454905,-150.0,0.00011783,2]
[348105258,1736315454915,-150.0,0.00011795,2]
[348105259,1736315454925,-157.76,0.00011796,2]
[348105260,1736315454935,-200.0,0.000118,2]
[348105261,1736315454945,-2730.0,0.000118,4]
[348105262,1736315454955,-150.0,0.00011814,2]
[348105263,1736315454966,-500.0,0.00011816,2]
[348105264,1736315454976,-500.0,0.00011816,2]
[348105265,1736315454988,-643.91,0.00011816,2]
[348105266,1736315454998,-997.45,0.00011816,2]
[348105267,1736315455008,-150.0,0.00011825,2]
[348105268,1736315455017,-150.0,0.00011855,2]
[348105269,1736315455028,-150.0,0.00011865,2]
[348105270,1736315455041,-150.0,0.00011865,2]
[348105271,1736315455051,-238118.61070124,0.0001188,2]
[348105272,1736315455468,-3775.29420506,0.0001188,2]
[348105273,1736315455581,-500.0,0.00011369,2]
[348105274,1736315455591,-2102.75723008,0.0001188,2]
[348105275,1736315455676,-500.0,0.00010547,2]
[348105276,1736315455685,-277.12919889,0.00010821,2]
[348105277,1736315455701,-222.87080111,0.00010821,2]
[348105278,1736315455710,-500.0,0.00011643,2]
[348105279,1736315455720,-13210.93510214,0.0001188,2]
[348105280,1736315456019,-500.0,9.998e-05,2]
[348105281,1736315456030,-500.0,0.00010272,2]
[348105282,1736315456042,-500.0,0.00010546,2]
[348105283,1736315456053,-500.0,0.00011095,2]
[348105284,1736315456063,-500.0,0.00011369,2]
[348105285,1736315456072,-500.0,0.00011643,2]
[348105286,1736315456082,-630.14560904,0.0001188,2]
[348105287,1736315456093,-620.86732172,0.0001188,2]
[348105288,1736315456104,-379.500005,0.0001188,2]
[348105289,1736315456115,-2107.10044256,0.0001188,2]
[348105290,1736315456127,-1234.68439198,0.0001188,2]
[348105291,1736315456138,-112287.09721516,0.0001188,2]
[348105292,1736315456150,-6598.36197511,0.0001188,2]
[348105293,1736315456165,-14868.01321538,0.0001188,2]
[348105294,1736315456176,-342.08199988,0.0001188,2]
[348105295,1736315456486,-315.5451,9.973e-05,2]
[348105296,1736315456497,-184.4549,9.973e-05,2]
[348105297,1736315456507,-1000.0,0.00010521,2]
[348105298,1736315456516,-500.0,0.0001082,2]
[348105299,1736315456525,-500.0,0.00011094,2]
[348105300,1736315456535,-500.0,0.00011368,2]
[348105301,1736315456544,-1000.0,0.00011522,2]
[348105302,1736315456554,-500.0,0.00011642,2]
[348105303,1736315456563,-643.87031666,0.00011785,2]
[348105304,1736315456579,-106.97393593,0.00011785,2]
[348105305,1736315456589,-2978.46678587,0.0001188,2]
[348105306,1736315456600,-385.0,0.0001188,2]
[348105307,1736315456630,-264580.34816175,0.0001188,2]
[348105308,1736315456641,-150.0,0.00011885,2]
[348105309,1736315456650,-500.0,0.0001189,2]
[348105310,1736315456660,-14710.4090298,0.00011893,2]
[348105311,1736315456669,-197.51631151,0.000119,2]
[348105312,1736315456679,-150.0,0.00011915,2]
[348105313,1736315456688,-150.0,0.00011916,2]
[348105314,1736315456697,-881.51,0.00011916,2]
[348105315,1736315456708,-1152.78,0.00011916,2]
[348105316,1736315456717,-587.52,0.00011916,2]
[348105317,1736315456726,-500.0,0.00011916,2]
[348105318,1736315456736,-500.0,0.00011916,2]
[348105319,1736315456745,-941.08,0.00011916,2]
[348105320,1736315456755,-884.97,0.00011916,2]
[348105321,1736315456765,-500.0,0.00011916,2]
[348105322,1736315456775,-500.0,0.00011916,2]
[348105323,1736315456786,-500.0,0.00011916,2]
[348105324,1736315456796,-312.00672859,0.00011916,2]
[348105325,1736315456806,-500.0,0.00011916,2]
[348105326,1736315456816,-964.77,0.00011916,2]
[348105327,1736315456825,-500.0,0.00011916,2]
[348105328,1736315456835,-500.0,0.00011916,2]
[348105329,1736315456845,-557.63,0.00011916,2]
[348105330,1736315456855,-2618.73,0.00011916,2]
[348105331,1736315456864,-500.0,0.00011916,2]
[348105332,1736315456874,-350.15338423,0.00011916,2]
[348105333,1736315456884,-500.0,0.00011916,2]
[348105334,1736315456894,-500.0,0.00011916,2]
[348105335,1736315456903,-500.0,0.00011916,2]
[348105336,1736315456912,-277.935117,0.00011917,2]
[348105337,1736315456922,-182.304635,0.00011917,2]
[348105338,1736315456931,-1734.8,0.00011917,2]
[348105339,1736315456941,-500.0,0.00011917,2]
[348105340,1736315456950,-532.85,0.00011917,2]
[348105341,1736315456959,-860.62,0.00011917,2]
[348105342,1736315456969,-720.43,0.00011917,2]
[348105343,1736315456978,-511.38,0.00011917,2]
[348105344,1736315456990,-500.0,0.00011917,2]
[348105345,1736315457000,-500.0,0.00011917,2]
[348105346,1736315457009,-500.0,0.00011917,2]
[348105347,1736315457019,-500.0,0.00011917,2]
[348105348,1736315457029,-500.0,0.00011917,2]
[348105349,1736315457039,-500.0,0.00011917,2]
[348105350,1736315457048,-500.0,0.00011917,2]
[348105351,1736315457060,-1446.58,0.00011917,2]
[348105352,1736315457069,-500.0,0.00011917,2]
[348105353,1736315457078,-500.0,0.00011917,2]
[348105354,1736315457088,-500.0,0.00011917,2]
[348105355,1736315457097,-500.0,0.00011917,2]
[348105356,1736315457107,-530.3343001,0.00011917,2]
[348105357,1736315457116,-500.0,0.00011917,2]
[348105358,1736315457125,-500.0,0.00011917,2]
[348105359,1736315457135,-500.0,0.00011917,2]
[348105360,1736315457144,-500.0,0.00011917,2]
[348105361,1736315457154,-500.0,0.00011917,2]
[348105362,1736315457164,-500.0,0.00011917,2]
[348105363,1736315457173,-500.0,0.00011917,2]
[348105364,1736315457183,-500.0,0.00011917,2]
[348105365,1736315457192,-500.0,0.00011917,2]
[348105366,1736315457202,-500.0,0.00011917,2]
[348105367,1736315457211,-500.0,0.00011917,2]
[348105368,1736315457221,-500.0,0.00011917,2]
[348105369,1736315457231,-500.0,0.00011917,2]
[348105370,1736315457241,-500.0,0.00011917,2]
[348105371,1736315457252,-571.36966522,0.00011917,2]
[348105372,1736315457263,-500.0,0.00011917,2]
[348105373,1736315457273,-500.0,0.00011917,2]
[348105374,1736315457286,-500.0,0.00011917,2]
[348105375,1736315457300,-500.0,0.00011917,2]
[348105376,1736315457311,-553.46,0.00011917,2]
[348105377,1736315457322,-514.96,0.00011917,2]
[348105378,1736315457333,-500.0,0.00011917,2]
[348105379,1736315457343,-500.0,0.00011917,2]
[348105380,1736315457354,-500.0,0.00011917,2]
[348105381,1736315457364,-648.89,0.00011917,2]
[348105382,1736315457374,-487.66,0.00011917,2]
[348105383,1736315457385,-443.53,0.00011917,2]
[348105384,1736315457395,-500.0,0.00011917,2]
[348105385,1736315457406,-500.0,0.00011917,2]
[348105386,1736315457416,-871.32,0.00011917,2]
[348105387,1736315457426,-846.37,0.00011917,2]
[348105388,1736315457436,-500.0,0.00011917,2]
[348105389,1736315457446,-500.0,0.00011917,2]
[348105390,1736315457456,-1626.01,0.00011917,2]
[348105391,1736315457466,-500.0,0.00011917,2]
[348105392,1736315457476,-1089.12,0.00011917,2]
[348105393,1736315457487,-578.12,0.00011917,2]
[348105394,1736315457496,-500.0,0.00011917,2]
[348105395,1736315457506,-500.0,0.00011917,2]
[348105396,1736315457516,-500.0,0.00011917,2]
[348105397,1736315457526,-902.64,0.00011917,2]
[348105398,1736315457539,-877.67,0.00011917,2]
[348105399,1736315457549,-559.8,0.00011917,2]
[348105400,1736315457559,-785.35,0.00011917,2]
[348105401,1736315457568,-500.0,0.00011917,2]
[348105402,1736315457578,-1921.85,0.00011917,2]
[348105403,1736315457588,-500.0,0.00011917,2]
[348105404,1736315457599,-500.0,0.00011917,2]
[348105405,1736315457608,-500.0,0.00011917,2]
[348105406,1736315457618,-2395.49,0.00011917,2]
[348105407,1736315457628,-500.0,0.00011917,2]
[348105408,1736315457637,-1876.64,0.00011917,2]
[348105409,1736315457647,-1148.81,0.00011917,2]
[348105410,1736315457657,-1286.43,0.00011917,2]
[348105411,1736315457667,-500.0,0.00011917,2]
[348105412,1736315457677,-500.0,0.00011917,2]
[348105413,1736315457687,-1078.28885204,0.00011917,2]
[348105414,1736315457701,-673.62114796,0.00011917,2]
[348105415,1736315457710,-811.2,0.00011917,2]
[348105416,1736315457719,-500.0,0.00011917,2]
[348105417,1736315457729,-500.0,0.00011917,2]
[348105418,1736315457739,-500.0,0.00011917,2]
[348105419,1736315457749,-500.0,0.00011917,2]
[348105420,1736315457759,-1520.25537958,0.00011944,2]
[348105421,1736315457769,-150.0,0.00011945,2]
[348105422,1736315457778,-150.0,0.00011947,2]
[348105423,1736315457789,-150.0,0.00011967,2]
[348105424,1736315457799,-150.0,0.00011975,2]
[348105425,1736315457808,-433.0,0.00011978,2]
[348105426,1736315457818,-29611.06918849,0.0001198,2]
[348105427,1736315457827,-163130.0,0.00012,2]
[348105428,1736315457836,-35584.36550248,0.00012,2]
[348105429,1736315840367,167.0,0.0002,120]
[348105431,1736316295711,-838.62,8.415e-05,2]
[348105453,1736316626631,1089.0,0.00017,60]
[348105457,1736316632299,-1174.689986,9.504e-05,2]
[348105458,1736316632309,-384.77,9.553e-05,2]
[348105459,1736316632319,-5989.65,9.697e-05,2]
[348105460,1736316632328,-1000.0,9.747e-05,2]
[348105461,1736316632338,-250.0,9.788e-05,2]
[348105462,1736316632347,-300.0,9.956e-05,2]
[348105463,1736316632357,-561.49,9.958e-05,2]
[348105464,1736316632366,-150.0,9.997e-05,2]
[348105465,1736316632376,-500.0,9.998e-05,2]
[348105466,1736316632385,-172.18270122,9.998e-05,2]
[348105467,1736316632397,-500.0,9.998e-05,2]
[348105468,1736316632407,-500.0,9.998e-05,2]
[348105469,1736316632416,-500.0,9.998e-05,2]
[348105470,1736316632425,-500.0,9.998e-05,2]
[348105471,1736316632436,-500.0,9.998e-05,2]
[348105472,1736316632446,-500.0,9.998e-05,2]
[348105473,1736316632455,-500.0,9.998e-05,2]
[348105474,1736316632465,-500.0,9.998e-05,2]
[348105475,1736316632475,-500.0,9.998e-05,2]
[348105476,1736316632484,-500.0,9.998e-05,2]
[348105477,1736316632494,-500.0,9.998e-05,2]
[348105478,1736316632503,-500.0,9.998e-05,2]
[348105479,1736316632512,-500.0,9.998e-05,2]
[348105480,1736316632522,-500.0,9.998e-05,2]
[348105481,1736316632531,-530.08,9.998e-05,2]
[348105482,1736316632541,-500.0,9.998e-05,2]
[348105483,1736316632550,-500.0,9.998e-05,2]
[348105484,1736316632559,-500.0,9.998e-05,2]
[348105485,1736316632569,-500.0,9.998e-05,2]
[348105486,1736316632578,-500.0,9.998e-05,2]
[348105487,1736316632587,-500.0,9.998e-05,2]
[348105488,1736316632596,-500.0,9.998e-05,2]
[348105489,1736316632606,-500.0,9.998e-05,2]
[348105490,1736316632616,-500.0,9.998e-05,2]
[348105491,1736316632625,-510.69986738,9.998e-05,2]
[348105492,1736316632635,-379.76588204,9.998e-05,2]
[348105494,1736316632644,-500.0,9.998e-05,2]
[348105495,1736316632654,-500.0,9.998e-05,2]
[348105497,1736316632663,-500.0,9.998e-05,2]
[348105499,1736316632672,-500.0,9.998e-05,2]
[348105501,1736316632682,-500.0,9.998e-05,2]
[348105503,1736316632691,-490.0,9.998e-05,2]
[348105505,1736316632701,-500.0,9.998e-05,2]
[348105507,1736316632710,-505.72942082,9.998e-05,2]
[348105509,1736316632719,-500.0,9.998e-05,2]
[348105511,1736316632728,-500.0,9.998e-05,2]
[348105513,1736316632737,-500.0,9.998e-05,2]
[348105515,1736316632747,-500.0,9.998e-05,2]
[348105517,1736316632756,-330.82063265,9.998e-05,2]
[348105519,1736316632768,-169.17936735,9.998e-05,2]
[348105521,1736316632777,-525.50366368,9.998e-05,2]
[348105523,1736316632786,-500.0,9.998e-05,2]
[348105525,1736316632796,-500.0,9.998e-05,2]
[348105527,1736316632805,-500.0,9.998e-05,2]
[348105529,1736316632814,-500.0,9.998e-05,2]
[348105531,1736316632823,-500.0,9.998e-05,2]
[348105533,1736316632833,-500.0,9.998e-05,2]
[348105535,1736316632843,-500.0,9.998e-05,2]
[348105537,1736316632852,-500.0,9.998e-05,2]
[348105539,1736316632861,-500.0,9.998e-05,2]
[348105541,1736316632870,-500.0,9.998e-05,2]
[348105543,1736316632879,-176.87296297,9.998e-05,2]
[348105545,1736316632891,-323.12703703,9.998e-05,2]
[348105547,1736316632900,-324.67732069,9.998e-05,2]
[348105549,1736316632911,-179.74378424,9.998e-05,2]
[348105551,1736316632920,-500.0,9.998e-05,2]
[348105553,1736316632930,-500.0,9.998e-05,2]
[348105555,1736316632939,-500.0,9.998e-05,2]
[348105557,1736316632950,-500.0,9.998e-05,2]
[348105559,1736316632960,-427.63993439,9.998e-05,2]
[348105562,1736316632979,-87.17006561,9.998e-05,2]
[348105564,1736316632988,-500.0,9.998e-05,2]
[348105566,1736316632998,-500.0,9.998e-05,2]
[348105568,1736316633007,-500.0,9.998e-05,2]
[348105570,1736316633016,-500.0,9.998e-05,2]
[348105572,1736316633026,-500.0,9.998e-05,2]
[348105574,1736316633038,-500.0,9.998e-05,2]
[348105575,1736316633048,-622.13681568,9.998e-05,2]
[348105576,1736316633067,-601.7404142,9.998e-05,2]
[348105577,1736316633079,-509.94277012,9.998e-05,2]
[348105578,1736316633089,-500.0,9.998e-05,2]
[348105579,1736316633099,-500.0,9.998e-05,2]
[348105580,1736316633109,-500.0,9.998e-05,2]
[348105581,1736316633118,-500.0,9.998e-05,2]
[348105582,1736316633128,-500.0,9.998e-05,2]
[348105583,1736316633138,-1762.74,9.998e-05,2]
[348105584,1736316633147,-500.0,9.998e-05,2]
[348105585,1736316633158,-508.33567904,9.998e-05,2]
[348105586,1736316633168,-500.0,9.998e-05,2]
[348105587,1736316633177,-500.0,9.998e-05,2]
[348105588,1736316633187,-500.0,9.998e-05,2]
[348105589,1736316633198,-310.19294114,9.998e-05,2]
[348105590,1736316633432,-189.80705886,9.998e-05,2]
[348105591,1736316633445,-189.1763958,9.998e-05,2]
[348105593,1736316638077,-542.3536042,9.998e-05,2]
[348105594,1736316638086,-1169.17,9.998e-05,2]
[348105595,1736316638096,-500.0,9.998e-05,2]
[348105596,1736316638106,-500.0,9.998e-05,2]
[348105597,1736316638115,-500.0,9.998e-05,2]
[348105598,1736316638124,-500.0,9.998e-05,2]
[348105599,1736316638133,-873.44,9.998e-05,2]
[348105600,1736316638143,-500.0,9.999e-05,2]
[348105601,1736316638153,-1156.45,9.999e-05,2]
[348105602,1736316638162,-500.0,9.999e-05,2]
[348105603,1736316638172,-500.0,9.999e-05,2]
[348105604,1736316638181,-207.08,9.999e-05,2]
[348105605,1736316638191,-500.0,9.999e-05,2]
[348105606,1736316638201,-728.35,9.999e-05,2]
[348105607,1736316638211,-500.0,9.999e-05,2]
[348105608,1736316638223,-500.0,9.999e-05,2]
[348105609,1736316638233,-471.34,9.999e-05,2]
[348105610,1736316638243,-500.0,9.999e-05,2]
[348105611,1736316638253,-500.0,9.999e-05,2]
[348105612,1736316638261,-500.0,9.999e-05,2]
[348105613,1736316638270,-1163.85,9.999e-05,2]
[348105614,1736316638279,-555.23,9.999e-05,2]
[348105615,1736316638288,-500.0,9.999e-05,2]
[348105616,1736316638298,-500.0,9.999e-05,2]
[348105617,1736316638308,-500.0,9.999e-05,2]
[348105618,1736316638318,-500.0,9.999e-05,2]
[348105619,1736316638327,-500.0,9.999e-05,2]
[348105620,1736316638336,-500.0,9.999e-05,2]
[348105621,1736316638346,-500.0,9.999e-05,2]
[348105622,1736316638355,-500.0,9.999e-05,2]
[348105623,1736316638364,-1097.54,9.999e-05,2]
[348105624,1736316638373,-500.0,9.999e-05,2]
[348105625,1736316638383,-534.62,9.999e-05,2]
[348105626,1736316638392,-500.0,9.999e-05,2]
[348105627,1736316638405,-1000.0,9.999e-05,2]
[348105628,1736316638416,-500.0,9.999e-05,2]
[348105629,1736316638426,-500.0,9.999e-05,2]
[348105630,1736316638436,-500.0,9.999e-05,2]
[348105631,1736316638447,-657.67,9.999e-05,2]
[348105632,1736316638457,-500.0,9.999e-05,2]
[348105633,1736316638467,-917.56,9.999e-05,2]
[348105634,1736316638478,-973.88,9.999e-05,2]
[348105635,1736316638488,-500.0,9.999e-05,2]
[348105636,1736316638497,-2225.1,9.999e-05,2]
[348105637,1736316638507,-500.0,9.999e-05,2]
[348105638,1736316638516,-575.86,9.999e-05,2]
[348105639,1736316638526,-500.0,9.999e-05,2]
[348105640,1736316638536,-2484.4,9.999e-05,2]
[348105641,1736316638547,-500.0,9.999e-05,2]
[348105642,1736316638558,-164.11,0.0001,2]
[348105643,1736316638567,-14005.95,0.00010059,2]
[348105644,1736316638577,-189.26,0.00010137,2]
[348105645,1736316638587,-250.0,0.00010242,2]
[348105646,1736316638598,-500.0,0.00010272,2]
[348105647,1736316638607,-568.64,0.00010272,2]
[348105648,1736316638617,-405.48504729,0.00010272,2]
[348105649,1736316638627,-500.0,0.00010272,2]
[348105650,1736316638637,-500.0,0.00010272,2]
[348105651,1736316638646,-500.0,0.00010272,2]
[348105652,1736316638656,-500.0,0.00010272,2]
[348105654,1736316638665,-207.85,0.00010272,2]
[348105656,1736316638675,-500.0,0.00010272,2]
[348105659,1736316638684,-500.0,0.00010272,2]
[348105662,1736316638693,-500.0,0.00010272,2]
[348105665,1736316638703,-500.0,0.00010272,2]
[348105667,1736316638712,-500.0,0.00010272,2]
[348105669,1736316638722,-232.6,0.00010272,2]
[348105672,1736316638734,-500.0,0.00010272,2]
[348105675,1736316638744,-208.76,0.00010272,2]
[348105677,1736316638753,-500.0,0.00010272,2]
[348105679,1736316638762,-1733.82,0.00010272,2]
[348105681,1736316638771,-500.0,0.00010272,2]
[348105683,1736316638780,-500.0,0.00010272,2]
[348105685,1736316638790,-500.0,0.00010272,2]
[348105686,1736316638799,-1762.74,0.00010272,2]
[348105687,1736316638808,-500.0,0.00010272,2]
[348105688,1736316638817,-731.53,0.00010272,2]
[348105689,1736316638827,-1169.17,0.00010272,2]
[348105690,1736316638836,-500.0,0.00010272,2]
[348105691,1736316638845,-500.0,0.00010272,2]
[348105692,1736316638857,-500.0,0.00010272,2]
[348105693,1736316638866,-500.0,0.00010272,2]
[348105694,1736316638875,-873.44,0.00010272,2]
[348105695,1736316638886,-498.13,0.00010272,2]
[348105696,1736316638895,-500.0,0.00010273,2]
[348105697,1736316638905,-1156.45,0.00010273,2]
[348105699,1736316638914,-500.0,0.00010273,2]
[348105701,1736316638924,-728.35,0.00010273,2]
[348105703,1736316638935,-500.0,0.00010273,2]
[348105705,1736316638945,-500.0,0.00010273,2]
[348105707,1736316638963,-500.0,0.00010273,2]
[348105709,1736316638972,-500.0,0.00010273,2]
[348105711,1736316638982,-1163.85,0.00010273,2]
[348105713,1736316638991,-555.23,0.00010273,2]
[348105715,1736316639000,-500.0,0.00010273,2]
[348105717,1736316639009,-500.0,0.00010273,2]
[348105719,1736316639019,-500.0,0.00010273,2]
[348105721,1736316639028,-500.0,0.00010273,2]
[348105723,1736316639038,-500.0,0.00010273,2]
[348105725,1736316639047,-500.0,0.00010273,2]
[348105727,1736316639056,-500.0,0.00010273,2]
[348105729,1736316639065,-500.0,0.00010273,2]
[348105731,1736316639074,-1097.54,0.00010273,2]
[348105733,1736316639084,-500.0,0.00010273,2]
[348105735,1736316639093,-534.62,0.00010273,2]
[348105737,1736316639103,-500.0,0.00010273,2]
[348105739,1736316639112,-500.0,0.00010273,2]
[348105741,1736316639121,-500.0,0.00010273,2]
[348105743,1736316639131,-657.67,0.00010273,2]
[348105745,1736316639140,-500.0,0.00010273,2]
[348105747,1736316639150,-500.0,0.00010273,2]
[348105749,1736316639159,-917.56,0.00010273,2]
[348105750,1736316639169,-973.88,0.00010273,2]
[348105751,1736316639179,-500.0,0.00010273,2]
[348105752,1736316639188,-2225.1,0.00010273,2]
[348105753,1736316639199,-500.0,0.00010273,2]
[348105754,1736316639209,-575.86,0.00010273,2]
[348105755,1736316639222,-500.0,0.00010273,2]
[348105756,1736316639231,-2484.4,0.00010273,2]
[348105757,1736316639241,-500.0,0.00010273,2]
[348105758,1736316639250,-250.0,0.00010336,2]
[348105759,1736316639260,-501.0,0.00010356,2]
[348105760,1736316639271,-2664.42,0.00010454,2]
[348105761,1736316639281,-2269.65,0.00010545,2]
[348105762,1736316639290,-500.0,0.00010545,2]
[348105763,1736316639299,-500.0,0.00010545,2]
[348105764,1736316639308,-746.93,0.00010545,2]
[348105765,1736316639318,-765.37,0.00010545,2]
[348105766,1736316639328,-1466.31,0.00010545,2]
[348105767,1736316639337,-511.62,0.00010545,2]
[348105768,1736316639346,-500.0,0.00010545,2]
[348105769,1736316639356,-800.96,0.00010545,2]
[348105770,1736316639365,-700.15,0.00010545,2]
[348105771,1736316639374,-500.0,0.00010545,2]
[348105772,1736316639383,-2133.96,0.00010545,2]
[348105773,1736316639393,-1686.88,0.00010545,2]
[348105774,1736316639406,-500.0,0.00010545,2]
[348105775,1736316639415,-1574.6,0.00010545,2]